Cogmind - Beta 16.1 @@@ ROGUE MODE // 2026.01.31 @ 13:06:08 Player: f3-rnm Result: Destroyed by SD-R6T(R) with Subdweller Laser Performance ------------- Evolutions (0) 0 Regions Visited (2) 400 Robots Destroyed (6) 30 Value Destroyed (52) 52 Prototype IDs (1) 20 Alien Tech Used (0) 0 Bonus (0) 0 TOTAL SCORE: 502 Bonus ------- None Cogmind --------- Core Integrity 0/250 Matter 246/300 Energy 100/100 System Corruption 0% Temperature Cool (6) Movement Hovering (120) Ox1 Location -10/Subcaves Parts ------- > --- POWER (1) -------- (None) > --- PROPULSION (2) --- Hover Unit > --- UTILITY (2) ------ Blink Core > --- WEAPON (2) ------- Makeshift Spear > --- INVENTORY (5) ---- Light Treads Subdweller Monowheel Small Storage Unit High-capacity Storage Unit Peak State ------------ > --- POWER ------------ Ion Engine > --- PROPULSION ------- Light Treads Light Treads > --- UTILITY ---------- High-capacity Storage Unit Blink Core > --- WEAPON ----------- Light Assault Rifle > --- INVENTORY -------- Ion Engine Light Treads Light Treads Compact Wheel Compact Wheel Hover Unit Hover Unit Small Storage Unit [Rating: 18] Favorites ----------- Power Ion Engine Engine Ion Engine Propulsion Light Treads Treads Light Treads Wheel Compact Wheel Hover Unit Hover Unit Utility Blink Core Device Blink Core Storage Small Storage Unit Processor Targeting Computer Weapon EM Pulse Gun Energy Gun EM Pulse Gun Ballistic Gun Light Assault Rifle Piercing Weapon Makeshift Spear Build | -11 -10 -10 ------- Run | Yrd Mat Sub Slots Evolved . | . . . Power . | . . . Propulsion . | . . . Utility . | . . . Weapon . | . . . Parts Attached 14 | 6 3 5 Power 1 | 1 . . Engine 1 | 1 . . Core . | . . . Reactor . | . . . Propulsion 5 | 2 . 3 Treads 2 | 2 . . Leg . | . . . Wheel 1 | . . 1 Hover 2 | . . 2 Flight . | . . . Utility 4 | 1 2 1 Device 1 | . . 1 Storage 2 | 1 1 . Processor 1 | . 1 . Hackware . | . . . Protection . | . . . Artifact . | . . . Weapon 4 | 2 1 1 Energy Gun 2 | 2 . . Energy Cannon . | . . . Ballistic Gun 1 | . 1 . Ballistic Cannon . | . . . Launcher . | . . . Special Weapon . | . . . Impact Weapon . | . . . Slashing Weapon . | . . . Piercing Weapon 1 | . . 1 Special Melee Weapon . | . . . Unidentified Prototypes . | . . . Parts Lost 2 | . 1 1 Power . | . . . Propulsion . | . . . Utility . | . . . Weapon 2 | . 1 1 Highest Loss Streak 1 | . 1 1 To Critical Strikes . | . . . Average Backups 6 | 2 7 5 Power . | . 1 . Propulsion 3 | . 3 3 Utility 1 | 1 1 1 Weapon . | . . . Tool/Special . | . . . Unused Backups 5 | . . 5 Power 1 | . . 1 Propulsion 4 | . . 4 Utility . | . . . Weapon . | . . . Tool/Special . | . . . Average Slot Usage (%) 71 | . 93 54 Engine 7 | . 14 3 Treads 15 | . 28 6 Hover 8 | . . 15 Device 6 | . . 11 Storage 8 | . 14 3 Processor 5 | . 10 2 Energy Gun 11 | . 22 2 Ballistic Gun 5 | . 3 7 Peak Build Rating 18 | 7 9 18 Average Rating 11 | 5 8 14 On Entrance 5 | 1 7 9 Avg Prop Armor Cover (%) 10 | . . 10 Naked Turns . | . . . Heaviest Build 54 | 14 49 54 Greatest Support 40 | 40 40 40 Greatest Overweight (x) 3 | 3 1 1 Average Overweight (x) . | . . . Largest Inventory Capacity 20 | 8 20 20 Average Capacity 10 | 7 13 8 Most Carried 10 | 4 10 9 Average Carried 6 | 2 7 5 Final Capacity 20 | 8 20 5 Final Carried 9 | 4 9 4 Class Distribution -------------------- 100% | Mutant Dominant Class ---------------- Mutant | -10/Materials Mutant | -10/Subcaves Resources | -11 -10 -10 ----------- Run | Yrd Mat Sub Matter Collected 306 | 188 100 18 Remotely . | . . . Salvage Created 260 | . 260 . Parts 15 | . 15 . Haulers Intercepted 2 | . 2 . Recyclers Shooed 2 | . 2 . Parts Field Recycled . | . . . Retrieved Matter . | . . . Parts Self-Destructed 10 | . . 10 Prevented . | . . . Parts Restored . | . . . Kills | -11 -10 -10 ------- Run | Yrd Mat Sub Combat Hostiles Destroyed . | . . . Classes Destroyed 4 | . 4 . Worker 1 | . 1 . Builder 1 | . 1 . Hauler 2 | . 2 . Recycler 2 | . 2 . Best Kill Streak 4 | . 4 . Combat Bots Only . | . . . Max Kills in Single Turn 2 | . 2 . Gunslinging . | . . . Exploded . | . . . Melee . | . . . Uniques/NPCs Destroyed . | . . . Combat | -11 -10 -10 -------- Run | Yrd Mat Sub Hostile Shots Fired 26 | . . 26 Missed 11 | . . 11 Hits 15 | . . 15 Projectile 15 | . . 15 Damage Taken 498 | . 110 388 Core 251 | . 65 186 Absorbed by Shields . | . . . Core Remaining (%) 100 | 100 . . Volleys Fired 18 | . 14 4 Largest 2 | . 2 2 Hottest 80 | . 80 60 Shots Fired 33 | . 27 6 Gun 33 | . 27 6 Cannon . | . . . Launcher . | . . . Special . | . . . Kinetic 5 | . 1 4 Thermal . | . . . Explosive . | . . . Electromagnetic 28 | . 26 2 Robot Hit Streak 4 | . 4 3 Robot Miss Streak 3 | . 3 1 Penetration Max . | . . . Secondary Targets . | . . . Shots Hit Robots 17 | . 12 5 Core Hits 9 | . 9 . Critical Kills . | . . . Critical Parts Destroyed . | . . . Critical Strikes . | . . . Melee Attacks . | . . . Impact . | . . . Slashing . | . . . Piercing . | . . . Sneak Attacks . | . . . Combat Hostiles . | . . . Follow-up Attacks . | . . . Damage Inflicted 506 | . 469 37 Guns 223 | . 186 37 Cannons . | . . . Explosions 283 | . 283 . Melee . | . . . Ramming . | . . . Kinetic 27 | . . 27 Thermal . | . . . Explosive 283 | . 283 . Electromagnetic 196 | . 186 10 Impact . | . . . Slashing . | . . . Piercing . | . . . Highest Corruption . | . . . Average Corruption . | . . . Corruption Purged . | . . . Corruption Blocked . | . . . Overload Shots . | . . . Overflow Damage 94 | . 94 . Projectiles . | . . . Explosions 94 | . 94 . Melee . | . . . Knockbacks . | . . . Impact . | . . . Kinetic . | . . . Secondary . | . . . Self-Inflicted Damage 110 | . 110 . Shots 1 | . 1 . Rammed . | . . . Targets Rammed . | . . . Kicked . | . . . Crushed . | . . . Highest Temperature 54 | . 54 . Average Temperature 23 | . 23 . Received Heat Transfer 120 | . . 120 Siege Activations . | . . . Martial Activations . | . . . Shielding Activations . | . . . Robots Disrupted . | . . . Combat Hostiles . | . . . Robots Corrupted . | . . . Combat Hostiles . | . . . Parts Fried 2 | . 2 . Impact Corruptions . | . . . Robots Melted . | . . . Combat Hostiles . | . . . Parts Melted . | . . . Heat Transferred . | . . . Parts Sabotaged . | . . . Parts Stolen . | . . . Parts Stripped . | . . . Power Chain Reactions . | . . . Alert | -11 -10 -10 ------- Run | Yrd Mat Sub Maximum Alert Level . | . . . Low Security (%) 100 | 100 100 . Level 1 . | . . . Level 2 . | . . . Level 3 . | . . . Level 4 . | . . . Level 5 . | . . . High Security . | . . . Max Security . | . . . Peak Influence 95 | . 95 . Initial . | . . . Average 18 | . 21 . Influence Increases 129 | . 129 . Destroy 0b10 Robot/NC 30 | . 30 . Destroy Leader 4 | . 4 . Disable Machine 45 | . 45 . Destroy Structure 50 | . 50 . Influence Decreases 129 | . 114 15 Entered New Map 8 | . . 8 Time Decay 111 | . 104 7 Lost Part 10 | . 10 . Squads Dispatched . | . . . Investigation . | . . . Extermination . | . . . Reinforcement . | . . . Assault . | . . . Garrison . | . . . Intercept . | . . . Searches Triggered . | . . . Construction Impeded . | . . . Haulers Reinforced . | . . . Active Scanning Responses . | . . . Cargo Convoy Interrupts . | . . . Stealth | -11 -10 -10 --------- Run | Yrd Mat Sub Distress Signals . | . . . Communications Jammed . | . . . Distress Signals . | . . . Times Spotted 11 | . 3 8 Peak Tracking Total 2 | . 1 2 Tactical Retreats . | . . . Traps | -11 -10 -10 ------- Run | Yrd Mat Sub Traps Triggered . | . . . Indirectly . | . . . Trap Hack Attempts . | . . . Triggered . | . . . Disarmed . | . . . Reprogrammed . | . . . Reused . | . . . Traps Extracted . | . . . Installed . | . . . Triggered . | . . . Machines | -11 -10 -10 ---------- Run | Yrd Mat Sub Machines Disabled 3 | . 3 . Max in Single Turn 2 | . 2 . Machines Repaired . | . . . Machines Dismantled . | . . . Machines Sabotaged . | . . . Overloaded Fab Kills . | . . . Hacking | -11 -10 -10 --------- Run | Yrd Mat Sub Machines Accessed . | . . . Terminals . | . . . Fabricators . | . . . Repair Stations . | . . . Recycling Units . | . . . Scanalyzers . | . . . Garrison Access . | . . . Total Hacks . | . . . Successful . | . . . Failed . | . . . Catastrophic . | . . . Database Lockouts . | . . . Manual . | . . . Terminals . | . . . Fabricators . | . . . Repair Stations . | . . . Recycling Units . | . . . Scanalyzers . | . . . Garrison Access . | . . . Terminal Hacks . | . . . Fabricator Hacks . | . . . Repair Station Hacks . | . . . Recycling Unit Hacks . | . . . Scanalyzer . | . . . Garrison Access Hacks . | . . . Unauthorized Hacks . | . . . Terminals . | . . . Fabricators . | . . . Repair Stations . | . . . Recycling Units . | . . . Scanalyzers . | . . . Garrison Access . | . . . Data Cores Recovered . | . . . Used . | . . . Hacking Detections . | . . . Full Trace Events . | . . . Feedback Events . | . . . Feedback Blocked . | . . . Robot Schematics Acquired . | . . . Robots Built . | . . . Authchips . | . . . Time . | . . . Total Robot Build Rating . | . . . Part Schematics Acquired . | . . . Parts Built . | . . . Authchips . | . . . Time . | . . . Total Part Build Rating . | . . . Part Studies Acquired . | . . . Parts Repaired . | . . . Time . | . . . Parts Recycled . | . . . Recycled Matter . | . . . Retrieved Matter . | . . . Retrieved Components . | . . . Parts Scanalyzed . | . . . Part Schematics Acquired . | . . . Parts Damaged . | . . . Bothacking | -11 -10 -10 ------------ Run | Yrd Mat Sub Used RIF Installer . | . . . Robots Hacked . | . . . Non-combat . | . . . Combat . | . . . Robot Hacks Applied . | . . . Relay Couplers Released . | . . . Fabnet Peak Effective % . | . . . Robots Rewired . | . . . Allies Hacked . | . . . Hacks Repelled . | . . . Allies | -11 -10 -10 -------- Run | Yrd Mat Sub Total Allies . | . . . Largest Group . | . . . Highest-Rated Group . | . . . Highest-Rated Ally . | . . . Total Orders . | . . . Ally Attacks . | . . . Total Damage . | . . . Kills . | . . . Allies Corrupted . | . . . Allies Melted . | . . . Intel | -11 -10 -10 ------- Run | Yrd Mat Sub Active Infowar (turns) . | . . . Robot Analysis Total . | . . . Derelict Logs Recovered 1 | . . 1 Drone Launches . | . . . Drone Recoveries . | . . . Exploration | -11 -10 -10 ------------- Run | Yrd Mat Sub Turns Passed 1195 | 83 483 629 Spaces Moved 703 | 45 227 431 Core 6 | 6 . . Treads 312 | 39 227 46 Legs . | . . . Wheels 15 | . . 15 Hover 370 | . . 370 Flight . | . . . Fastest Speed 50 | 50 160 56 Average Speed 129 | 159 191 93 Slowest Speed 240 | 200 240 240 Overloaded Moves . | . . . Propulsion Burnouts . | . . . Robots Hopped . | . . . Potential Cave-ins . | . . . Cave-ins Triggered . | . . . Teleports 11 | . . 11 Exploration Rate (%) 20 | 3 34 24 Regions Visited 2 Branch Regions 1 Pre-discovered Areas . | . . . Known Exits Taken . | . . . Unknown Exits Taken 2 | 1 1 . Scrap Searched . | . . . Spaces Dug . | . . . Terrain Destroyed 48 | . 48 . Melee . | . . . Projectile . | . . . AOE 48 | . 48 . Terrain Rammed . | . . . Walls Destroyed . | . . . Machines Disabled . | . . . Actions | -11 -10 -10 --------- Run | Yrd Mat Sub Total 955 | 53 249 653 Wait 200 | . . 200 Move 701 | 44 226 431 Hop . | . . . Pick Up 12 | 3 6 3 Fast Attach 8 | 6 1 1 Attach 6 | . 1 5 Detach 2 | . . 2 Swap 2 | . 1 1 Drop 6 | . . 6 Fire 18 | . 14 4 Melee . | . . . Ram . | . . . Kick . | . . . Crush . | . . . Escape Stasis . | . . . Rewire . | . . . Trap . | . . . Miscellaneous . | . . . Route ------- -11/Scrapyard -10/Materials (discovered 2 exits: [*Mat] / [*Sub]) -10/Subcaves (discovered 1 exit: Mat) History --------- Turn | Location | Event 12 | -11/Scrapyard | Discovered new exit (range 15) 84 | -11/Scrapyard | Entered Materials 238 | -10/Materials | Discovered new exit (range 7) 315 | -10/Materials | Build established: Mutant 387 | -10/Materials | Discovered new exit (range 9) 567 | -10/Materials | Entered Subcaves 568 | -10/Subcaves | A swath of the cavern ceiling suddenly collapsed 568 | -10/Subcaves | Approached by a straggling Scientist 676 | -10/Subcaves | Core integrity fell below 50% 684 | -10/Subcaves | Found Blink Core 854 | -10/Subcaves | Identified exit to Materials 1102 | -10/Subcaves | Core integrity fell below 20% 1143 | -10/Subcaves | A swath of the cavern ceiling suddenly collapsed 1196 | -10/Subcaves | Destroyed by SD-R6T(R) with Subdweller Laser Last Messages --------------- 01047_ Hover Unit grabbed from subspace vortex. 01085_ Blink Core suddenly shrinks, drawing all nearby mass into a quantum tunnel. 01085_ Hover Unit ripped away by subspace vortex. 01085_ Hover Unit grabbed from subspace vortex. 01097_ Blink Core suddenly shrinks, drawing all nearby mass into a quantum tunnel. 01097_ Hover Unit ripped away by subspace vortex. 01111_ Subatomizers dissect the Corrupted Lgt. Treads. 01113_ Blink Core suddenly shrinks, drawing all nearby mass into a quantum tunnel. 01113_ Com. Wheel ripped away by subspace vortex. 01113_ Hover Unit grabbed from subspace vortex. 01143_ Battle Rifle crushed. A swath of the cavern ceiling suddenly collapses. 01177_ Subatomizers dissect the Sub. Monowheel. 01178_ SD-R6T(R): "SUBHATE!" 01181_ Acquired Mak. Spear. 01188_ Subatomizers dissect the Sub. Monowheel. 01191_ A3-1TL(O) collects matter. Map ----- +----------------------------------------------------+ | ??????????????????????????????????????????????? | | ??????????????????????????????????????????????? | | ??????????????????????????????????????????????? | | ??????????????????????????????????????????????? | | ??????????????????????????????????????????????? | | ??????????????????????????????????????????????? | | ??????????????????????????????????????????????? | | ??????????????????????????????????????????????? | | ??????????????????????????????????????????????? | | ??????????????????????????????????????????????? | | ??????????????????????????????????????????????? | | ??????????????????????????????????????????????? | | ??????????????????????????????????????????????? | | ??????????????????????????????????????????????? | | ??????????????????????????????????????????????? | | ??????????????????????????????????????????????? | | ??????????????????????????????????????????????? | | ??????????????????????????????????????????????? | | ?????????????????????#????????????????????????? | | ?????????????????????# ???????????????????????? | | ?????????????????????# ???????????????????????? | | ?????????????????????# ??????????????????????? | | ?????????????????????#%%#?????????????????????? | | ??????????????????????# ?????????????????????? | | ???????????????? ??## ##???????????????????? | | ???????????????## ### @###?????????????????? | | ???????????????# #?????????????????? | | ???????????????# ####??????????????? | | ???????????????#### O ##?????????????? | | ??????????????????# #?????????????? | | ???????????????#### ##?????????????? | | ?????????????### ##??????????????? | | ????????????? #???????????????? | | ???????????? ###?????????????? | | ??????????????## R #?????????????? | | ??????????????## ##?????????????? | | ???????????? ##?????????????? | | ???????????? & #?????????????? | | ????????????? ## #?????????????? | | ???????????????## ## = #?????????????? | | ???????????????????##### #?????????????? | | ???????????????????????## #?????????????? | | ??????????????????????##" ##?????????????? | | ????????????????????### " ##??????????????? | | ?????????????######## #"" "##???????????????? | | ?????????????# "" "#????????????????? | | ?????????????# ["##???????????????? | | ?????????????# " "#???????????????? | | ?????????????# #"" ##???????????????? | | ?????????????# ""#""#" "#???????????????? | +----------------------------------------------------+ Best States ------------- Heat Dissipation 25 Energy Generation 10 Energy Capacity 250 Matter Stores 300 Matter Capacity 300 Sight Range 16 Terrain Scan Density 10 Evasion (%) 53 Targeting Accuracy 5 Recoil Reduction 2 Item Schematics ----------------- None Robot Schematics ------------------ None Fabricated ------------ Nothing Repaired ---------- Nothing Studied --------- None Alien Tech Used ----------------- None Achievements -------------- None Challenges ------------ None Game ------ Seed StealthSupercompositeMaul Manual? 0 Play Time 00:07:08 Cumulative 430.0 hours Start 2026.01.31 @ 13:01:45 End 2026.01.31 @ 13:06:08 Sessions 1 Manual Loads 0 Difficulty Rogue Special Mode None Game No. 386 Rogue 350 Adventurer 36 Explorer 0 Win Type - Total 17 Types 8/0/9/0/0/0/0/0/0/0 Lore% 72 Gallery% 85 Achievement% 65 Wizard Run 0 Options --------- Layout 0 ASCII 0 Keyboard 0 Movement Mouse Keybinds 0 Fullscreen 1 Font 18/SmallcapsGlow Map View 76x50 Zoom Use 0% Tactical HUD 1 Map Filters NONE Filters NONE Steam 1 RUN: e89ede49-f43b-4a5c-bc19-1017c66a599e